[Event "Early-Titled-Tuesday-Blitz-March-05-2024"]
[Site "Chess.com"]
[Date "2024.03.05"]
[Round "11"]
[White "SpeedofLight0"]
[Black "MagnusCarlsen"]
[Result "1-0"]
[WhiteElo "3090"]
[BlackElo "3256"]
[TimeControl "180+1"]
[EndTime "10:10:15 PST"]
[Termination "SpeedofLight0 won on time"]

1. d4 {[%clk 0:03:00.9]} 1... g6 {[%clk 0:03:00]} 2. e4 {[%clk 0:02:59.9]} 2...
d6 {[%clk 0:03:00.2]} 3. Nc3 {[%clk 0:02:59.9]} 3... c6 {[%clk 0:02:59.3]} 4. f4
{[%clk 0:02:57.2]} 4... d5 {[%clk 0:02:59]} 5. e5 {[%clk 0:02:56.9]} 5... h5
{[%clk 0:02:58.9]} 6. Nf3 {[%clk 0:02:56.5]} 6... Bg4 {[%clk 0:02:54.5]} 7. Be3
{[%clk 0:02:55.3]} 7... e6 {[%clk 0:02:53.9]} 8. h3 {[%clk 0:02:55.1]} 8... Bxf3
{[%clk 0:02:54]} 9. Qxf3 {[%clk 0:02:56]} 9... h4 {[%clk 0:02:54.3]} 10. Bd3
{[%clk 0:02:53.9]} 10... Nh6 {[%clk 0:02:53.9]} 11. Ne2 {[%clk 0:02:53.4]} 11...
Be7 {[%clk 0:02:52]} 12. O-O {[%clk 0:02:52.4]} 12... a5 {[%clk 0:02:51]} 13. b3
{[%clk 0:02:50.5]} 13... Na6 {[%clk 0:02:49.2]} 14. c4 {[%clk 0:02:49.5]} 14...
Nb4 {[%clk 0:02:44.2]} 15. Bb1 {[%clk 0:02:47.5]} 15... a4 {[%clk 0:02:44.6]}
16. Bd2 {[%clk 0:02:34.1]} 16... axb3 {[%clk 0:02:42.3]} 17. Qxb3 {[%clk
0:02:35]} 17... dxc4 {[%clk 0:02:42.4]} 18. Qxc4 {[%clk 0:02:35.2]} 18... Nd5
{[%clk 0:02:36]} 19. Qb3 {[%clk 0:02:31.6]} 19... b5 {[%clk 0:02:35.5]} 20. Be4
{[%clk 0:02:29]} 20... O-O {[%clk 0:02:30.5]} 21. Qc2 {[%clk 0:02:28]} 21... Nf5
{[%clk 0:02:25.7]} 22. Qxc6 {[%clk 0:02:22.7]} 22... b4 {[%clk 0:02:17.2]} 23.
Rfc1 {[%clk 0:02:05.4]} 23... Ra3 {[%clk 0:02:04.2]} 24. Rc2 {[%clk 0:01:54]}
24... Nxf4 {[%clk 0:01:26.7]} 25. Bxf4 {[%clk 0:01:21.2]} 25... Nxd4 {[%clk
0:01:26.1]} 26. Qc4 {[%clk 0:01:08]} 26... Nxe2+ {[%clk 0:01:25.4]} 27. Qxe2
{[%clk 0:00:47.5]} 27... Qd4+ {[%clk 0:01:24.7]} 28. Kh2 {[%clk 0:00:47.4]}
28... Qxa1 {[%clk 0:01:24.7]} 29. Qg4 {[%clk 0:00:48.1]} 29... Qe1 {[%clk
0:00:43.2]} 30. Re2 {[%clk 0:00:38.2]} 30... Qf1 {[%clk 0:00:17.2]} 31. Bxg6
{[%clk 0:00:38]} 31... Rg3 {[%clk 0:00:16.3]} 32. Bxg3 {[%clk 0:00:33.7]} 32...
hxg3+ {[%clk 0:00:17.2]} 33. Qxg3 {[%clk 0:00:33]} 33... fxg6 {[%clk 0:00:13.3]}
34. Qxg6+ {[%clk 0:00:31.7]} 34... Kh8 {[%clk 0:00:13.9]} 35. Qh6+ {[%clk
0:00:22.3]} 35... Kg8 {[%clk 0:00:13.9]} 36. Qg6+ {[%clk 0:00:22.9]} 36... Kh8
{[%clk 0:00:14]} 37. Qh6+ {[%clk 0:00:21.6]} 37... Kg8 {[%clk 0:00:14.4]} 38.
Re4 {[%clk 0:00:22.4]} 38... Qf5 {[%clk 0:00:14.2]} 39. Rg4+ {[%clk 0:00:20.8]}
39... Kf7 {[%clk 0:00:14.3]} 40. Rf4 {[%clk 0:00:21.4]} 40... Qxf4+ {[%clk
0:00:11.4]} 41. Qxf4+ {[%clk 0:00:22.3]} 41... Ke8 {[%clk 0:00:11.9]} 42. Qc4
{[%clk 0:00:22]} 42... Kf7 {[%clk 0:00:11.7]} 43. h4 {[%clk 0:00:20.7]} 43...
Rd8 {[%clk 0:00:11.5]} 44. g3 {[%clk 0:00:19]} 44... Rd5 {[%clk 0:00:11.4]} 45.
Qf4+ {[%clk 0:00:17.8]} 45... Ke8 {[%clk 0:00:10.8]} 46. h5 {[%clk 0:00:18]}
46... Ra5 {[%clk 0:00:10.9]} 47. h6 {[%clk 0:00:15]} 47... Rxa2+ {[%clk
0:00:10.9]} 48. Kh3 {[%clk 0:00:15.6]} 48... Ra1 {[%clk 0:00:11.2]} 49. Qe4
{[%clk 0:00:13.9]} 49... Kf7 {[%clk 0:00:06.7]} 50. h7 {[%clk 0:00:12.7]} 50...
Kg7 {[%clk 0:00:06.2]} 51. Qg4+ {[%clk 0:00:11.7]} 51... Kxh7 {[%clk 0:00:05.6]}
52. Qxe6 {[%clk 0:00:12.4]} 52... Ra7 {[%clk 0:00:05.3]} 53. Kg4 {[%clk
0:00:12.3]} 53... Kg7 {[%clk 0:00:05]} 54. Kf5 {[%clk 0:00:12.3]} 54... Bf8
{[%clk 0:00:05.4]} 55. Qg6+ {[%clk 0:00:08.4]} 55... Kh8 {[%clk 0:00:05.8]} 56.
Qe8 {[%clk 0:00:09.3]} 56... Kg8 {[%clk 0:00:05.7]} 57. e6 {[%clk 0:00:08.6]}
57... Kg7 {[%clk 0:00:03.7]} 58. Qb5 {[%clk 0:00:07.8]} 58... Rc7 {[%clk
0:00:03.2]} 59. Qe5+ {[%clk 0:00:07.5]} 1-0

[Event "Early-Titled-Tuesday-Blitz-March-05-2024"]
[Site "Chess.com"]
[Date "2024.03.05"]
[Round "11"]
[White "Kobalia"]
[Black "Hamisandwich"]
[Result "1-0"]
[WhiteElo "2817"]
[BlackElo "2658"]
[TimeControl "180+1"]
[EndTime "10:10:18 PST"]
[Termination "Kobalia won by resignation"]

1. e4 {[%clk 0:03:00.9]} 1... g6 {[%clk 0:02:53.6]} 2. d4 {[%clk 0:03:00.5]}
2... d6 {[%clk 0:02:53.3]} 3. Bc4 {[%clk 0:03:00.3]} 3... e6 {[%clk 0:02:50.6]}
4. Nf3 {[%clk 0:03:00]} 4... Bg7 {[%clk 0:02:46.7]} 5. O-O {[%clk 0:02:59.7]}
5... Ne7 {[%clk 0:02:44.9]} 6. c3 {[%clk 0:02:58.8]} 6... O-O {[%clk 0:02:43]}
7. Bb3 {[%clk 0:02:59]} 7... Nbc6 {[%clk 0:02:38.7]} 8. Re1 {[%clk 0:02:58.5]}
8... Na5 {[%clk 0:02:35.6]} 9. Bc2 {[%clk 0:02:58.1]} 9... e5 {[%clk 0:02:33]}
10. dxe5 {[%clk 0:02:58.1]} 10... dxe5 {[%clk 0:02:32.9]} 11. b4 {[%clk
0:02:57.2]} 11... Nc4 {[%clk 0:02:27.2]} 12. Bb3 {[%clk 0:02:55.1]} 12... Nd6
{[%clk 0:02:22.1]} 13. Nbd2 {[%clk 0:02:52.8]} 13... a5 {[%clk 0:02:20.2]} 14.
Nc4 {[%clk 0:02:36.5]} 14... Nxc4 {[%clk 0:02:03.7]} 15. Qxd8 {[%clk 0:02:35.5]}
15... Rxd8 {[%clk 0:02:03.3]} 16. Bxc4 {[%clk 0:02:35.9]} 16... h6 {[%clk
0:01:33.1]} 17. b5 {[%clk 0:02:22.1]} 17... g5 {[%clk 0:01:15.7]} 18. h3 {[%clk
0:02:12.3]} 18... Ng6 {[%clk 0:01:15.6]} 19. Be3 {[%clk 0:02:10.3]} 19... Nf4
{[%clk 0:01:14]} 20. b6 {[%clk 0:02:03.7]} 20... c6 {[%clk 0:01:07.8]} 21. Red1
{[%clk 0:01:55]} 21... Be6 {[%clk 0:01:07]} 22. Bxe6 {[%clk 0:01:51.2]} 22...
Nxe6 {[%clk 0:00:55.6]} 23. Nd2 {[%clk 0:01:50.4]} 23... Bf8 {[%clk 0:00:44.1]}
24. Nc4 {[%clk 0:01:49.6]} 24... Bc5 {[%clk 0:00:44]} 25. Rxd8+ {[%clk
0:01:03.2]} 25... Rxd8 {[%clk 0:00:42.9]} 26. Bxc5 {[%clk 0:00:47.9]} 26... Nxc5
{[%clk 0:00:42.6]} 27. Nxe5 {[%clk 0:00:42.8]} 27... Rd2 {[%clk 0:00:35.4]} 28.
Nc4 {[%clk 0:00:41.4]} 28... Rc2 {[%clk 0:00:33]} 29. Nxa5 {[%clk 0:00:40.5]}
29... Rxc3 {[%clk 0:00:29.8]} 30. a4 {[%clk 0:00:31.9]} 30... Kf8 {[%clk
0:00:24.6]} 31. Rb1 {[%clk 0:00:23.4]} 31... Ke8 {[%clk 0:00:16.5]} 32. Nxc6
{[%clk 0:00:22.7]} 32... Nxa4 {[%clk 0:00:15.4]} 33. Na5 {[%clk 0:00:20.2]}
33... Nc5 {[%clk 0:00:15.7]} 34. f3 {[%clk 0:00:18.4]} 34... Kd7 {[%clk
0:00:13.3]} 35. Rd1+ {[%clk 0:00:18.1]} 35... Ke7 {[%clk 0:00:11.6]} 36. Rd5
{[%clk 0:00:18.1]} 36... Ke6 {[%clk 0:00:10.4]} 37. Kh2 {[%clk 0:00:17.7]} 37...
f6 {[%clk 0:00:09.6]} 38. Kg3 {[%clk 0:00:17.7]} 38... h5 {[%clk 0:00:10.2]} 39.
h4 {[%clk 0:00:17.8]} 39... Nxe4+ {[%clk 0:00:06.9]} 40. Kh2 {[%clk 0:00:14.1]}
40... Nc5 {[%clk 0:00:04.1]} 41. Rd1 {[%clk 0:00:11.5]} 41... g4 {[%clk
0:00:03.8]} 42. Re1+ {[%clk 0:00:10]} 42... Kf5 {[%clk 0:00:03.7]} 43. Rf1
{[%clk 0:00:09.7]} 43... Kf4 {[%clk 0:00:03.6]} 44. fxg4+ {[%clk 0:00:09.5]}
44... Kxg4 {[%clk 0:00:04.5]} 45. Rxf6 {[%clk 0:00:09]} 45... Kxh4 {[%clk
0:00:04.8]} 46. Rf7 {[%clk 0:00:09]} 46... Kg5 {[%clk 0:00:04.4]} 47. Nxb7
{[%clk 0:00:08.1]} 47... Nxb7 {[%clk 0:00:04]} 48. Rxb7 {[%clk 0:00:08.2]} 48...
Rb3 {[%clk 0:00:04.5]} 49. Rb8 {[%clk 0:00:08.6]} 49... Kh4 {[%clk 0:00:04.7]}
50. b7 {[%clk 0:00:07.1]} 50... Rb2 {[%clk 0:00:05.2]} 51. Kh1 {[%clk
0:00:07.1]} 51... Kg3 {[%clk 0:00:04.9]} 52. Rg8+ {[%clk 0:00:06.3]} 52... Kh4
{[%clk 0:00:05.7]} 53. g3+ {[%clk 0:00:05]} 53... Kh3 {[%clk 0:00:05.6]} 54.
b8=Q {[%clk 0:00:05.5]} 54... Rh2+ {[%clk 0:00:06.1]} 55. Kg1 {[%clk 0:00:04.7]}
55... Rg2+ {[%clk 0:00:07]} 56. Kf1 {[%clk 0:00:04.9]} 56... Rf2+ {[%clk
0:00:07.9]} 57. Kxf2 {[%clk 0:00:04.2]} 57... h4 {[%clk 0:00:06.5]} 58. Rh8
{[%clk 0:00:02.8]} 1-0

[Event "Early-Titled-Tuesday-Blitz-March-05-2024"]
[Site "Chess.com"]
[Date "2024.03.05"]
[Round "11"]
[White "KetiTsatsalashvili"]
[Black "HanSchut"]
[Result "1-0"]
[WhiteElo "2477"]
[BlackElo "2318"]
[TimeControl "180+1"]
[EndTime "10:10:19 PST"]
[Termination "KetiTsatsalashvili won on time"]

1. d4 {[%clk 0:03:00.9]} 1... Nf6 {[%clk 0:02:57.4]} 2. Nf3 {[%clk 0:03:00.7]}
2... g6 {[%clk 0:02:58]} 3. c4 {[%clk 0:02:58.2]} 3... Bg7 {[%clk 0:02:58.4]} 4.
Nc3 {[%clk 0:02:58.8]} 4... d5 {[%clk 0:02:58.9]} 5. cxd5 {[%clk 0:02:58.3]}
5... Nxd5 {[%clk 0:02:59.8]} 6. e4 {[%clk 0:02:58.2]} 6... Nxc3 {[%clk
0:03:00.2]} 7. bxc3 {[%clk 0:02:59.1]} 7... c5 {[%clk 0:03:00.6]} 8. Rb1 {[%clk
0:02:59]} 8... O-O {[%clk 0:02:56.9]} 9. Be2 {[%clk 0:02:58]} 9... Nc6 {[%clk
0:02:57.4]} 10. Be3 {[%clk 0:02:54.1]} 10... cxd4 {[%clk 0:02:42.9]} 11. cxd4
{[%clk 0:02:53.6]} 11... Qa5+ {[%clk 0:02:43.4]} 12. Qd2 {[%clk 0:02:34.1]}
12... Qxd2+ {[%clk 0:02:41.2]} 13. Kxd2 {[%clk 0:02:35]} 13... Rd8 {[%clk
0:02:41]} 14. d5 {[%clk 0:02:05.5]} 14... e6 {[%clk 0:02:33.4]} 15. Bg5 {[%clk
0:01:59.6]} 15... f6 {[%clk 0:02:28.7]} 16. Be3 {[%clk 0:01:29.5]} 16... exd5
{[%clk 0:02:27]} 17. exd5 {[%clk 0:01:30.4]} 17... Rxd5+ {[%clk 0:02:18.4]} 18.
Kc3 {[%clk 0:01:27.7]} 18... Kh8 {[%clk 0:02:05.3]} 19. Bc4 {[%clk 0:01:26]}
19... Rd8 {[%clk 0:02:04.7]} 20. Rhd1 {[%clk 0:01:13.3]} 20... Rxd1 {[%clk
0:01:56.6]} 21. Rxd1 {[%clk 0:01:14.2]} 21... Bg4 {[%clk 0:01:56.4]} 22. h3
{[%clk 0:01:11.1]} 22... Bxf3 {[%clk 0:01:46.6]} 23. gxf3 {[%clk 0:01:12]} 23...
Rc8 {[%clk 0:01:45.1]} 24. Be6 {[%clk 0:00:42.6]} 24... Rc7 {[%clk 0:01:19.7]}
25. Bf4 {[%clk 0:00:39.3]} 25... Ne5+ {[%clk 0:01:19.2]} 26. Kb3 {[%clk
0:00:37.4]} 26... Bf8 {[%clk 0:00:51.6]} 27. Rd8 {[%clk 0:00:34.4]} 27... Kg7
{[%clk 0:00:51.3]} 28. Bd5 {[%clk 0:00:30.1]} 28... b6 {[%clk 0:00:35]} 29. Be6
{[%clk 0:00:25.6]} 29... g5 {[%clk 0:00:33.6]} 30. Bd2 {[%clk 0:00:21.6]} 30...
Re7 {[%clk 0:00:27.9]} 31. Bd5 {[%clk 0:00:14.2]} 31... Rd7 {[%clk 0:00:28.1]}
32. Rxd7+ {[%clk 0:00:14.3]} 32... Nxd7 {[%clk 0:00:29]} 33. Bc3 {[%clk
0:00:13.7]} 33... Bd6 {[%clk 0:00:25]} 34. Kc4 {[%clk 0:00:13.4]} 34... Be5
{[%clk 0:00:25.1]} 35. Bd2 {[%clk 0:00:12.5]} 35... h5 {[%clk 0:00:24.6]} 36.
Kb5 {[%clk 0:00:12.3]} 36... Nc5 {[%clk 0:00:22.8]} 37. Kc6 {[%clk 0:00:11.3]}
37... Bf4 {[%clk 0:00:18.9]} 38. Bb4 {[%clk 0:00:10.2]} 38... Nd3 {[%clk
0:00:17.2]} 39. Be7 {[%clk 0:00:08.7]} 39... Nxf2 {[%clk 0:00:15.9]} 40. Kb7
{[%clk 0:00:08.5]} 40... Nxh3 {[%clk 0:00:15.6]} 41. Kxa7 {[%clk 0:00:08.3]}
41... Nf2 {[%clk 0:00:14.9]} 42. Kxb6 {[%clk 0:00:04.4]} 42... h4 {[%clk
0:00:14.9]} 43. Be6 {[%clk 0:00:04.4]} 43... Nd3 {[%clk 0:00:12.6]} 44. a4
{[%clk 0:00:03]} 44... Ne5 {[%clk 0:00:12.6]} 45. a5 {[%clk 0:00:02.4]} 45...
Nxf3 {[%clk 0:00:12.7]} 46. a6 {[%clk 0:00:02.5]} 46... Be3+ {[%clk 0:00:11.5]}
47. Bc5 {[%clk 0:00:02.4]} 47... Nd4 {[%clk 0:00:09.8]} 48. Bd7 {[%clk
0:00:01.6]} 48... f5 {[%clk 0:00:08.1]} 49. a7 {[%clk 0:00:01.2]} 49... h3
{[%clk 0:00:08.2]} 50. a8=Q {[%clk 0:00:01.2]} 50... h2 {[%clk 0:00:03.9]} 51.
Qf8+ {[%clk 0:00:01.8]} 51... Kg6 {[%clk 0:00:03.3]} 52. Qg8+ {[%clk 0:00:02.2]}
52... Kh5 {[%clk 0:00:03.7]} 53. Qh7+ {[%clk 0:00:02.4]} 53... Kg4 {[%clk
0:00:04.6]} 54. Bxf5+ {[%clk 0:00:02.4]} 54... Kg3 {[%clk 0:00:04.1]} 55. Qxh2+
{[%clk 0:00:03]} 55... Kxh2 {[%clk 0:00:04]} 56. Bd6+ {[%clk 0:00:03.7]} 56...
Kg2 {[%clk 0:00:03.4]} 57. Bd7 {[%clk 0:00:04]} 57... Ne2+ {[%clk 0:00:01.3]}
58. Kc7 {[%clk 0:00:04.3]} 58... Nf4 {[%clk 0:00:02.1]} 59. Bc6+ {[%clk
0:00:04.9]} 59... Kf2 {[%clk 0:00:01.6]} 60. Be7 {[%clk 0:00:05.5]} 60... Ne6+
{[%clk 0:00:01.5]} 61. Kd6 {[%clk 0:00:05.1]} 1-0

[Event "Early-Titled-Tuesday-Blitz-March-05-2024"]
[Site "Chess.com"]
[Date "2024.03.05"]
[Round "11"]
[White "Oleksandr_Bortnyk"]
[Black "Sina_Movahed"]
[Result "1-0"]
[WhiteElo "2999"]
[BlackElo "3039"]
[TimeControl "180+1"]
[EndTime "10:10:20 PST"]
[Termination "Oleksandr_Bortnyk won by resignation"]

1. e4 {[%clk 0:03:00.9]} 1... c6 {[%clk 0:02:59.7]} 2. d4 {[%clk 0:02:52.9]}
2... d5 {[%clk 0:02:59.7]} 3. Nc3 {[%clk 0:02:53.8]} 3... g6 {[%clk 0:02:49.6]}
4. Bf4 {[%clk 0:02:51.9]} 4... Bg7 {[%clk 0:02:47.5]} 5. e5 {[%clk 0:02:52.3]}
5... f6 {[%clk 0:02:35.3]} 6. Qd2 {[%clk 0:02:49.7]} 6... Nd7 {[%clk 0:02:34.6]}
7. Nf3 {[%clk 0:02:47.3]} 7... fxe5 {[%clk 0:02:33.2]} 8. dxe5 {[%clk 0:02:46]}
8... e6 {[%clk 0:02:29.8]} 9. h4 {[%clk 0:02:41.8]} 9... Ne7 {[%clk 0:02:18.1]}
10. O-O-O {[%clk 0:02:39.9]} 10... O-O {[%clk 0:02:16.7]} 11. h5 {[%clk
0:02:38.2]} 11... b5 {[%clk 0:02:01.3]} 12. g3 {[%clk 0:02:03.4]} 12... b4
{[%clk 0:01:58.1]} 13. Ne2 {[%clk 0:02:03.5]} 13... Qa5 {[%clk 0:01:55.7]} 14.
Kb1 {[%clk 0:01:57.3]} 14... c5 {[%clk 0:01:43.9]} 15. hxg6 {[%clk 0:01:37.7]}
15... Nxg6 {[%clk 0:01:42.5]} 16. Bh6 {[%clk 0:01:34.6]} 16... Rxf3 {[%clk
0:01:22]} 17. Bxg7 {[%clk 0:01:34.8]} 17... Rf7 {[%clk 0:01:18.5]} 18. Bh6
{[%clk 0:01:34.5]} 18... Ndxe5 {[%clk 0:01:03.6]} 19. Nf4 {[%clk 0:01:33.3]}
19... c4 {[%clk 0:00:43.7]} 20. Qd4 {[%clk 0:01:02.2]} 20... Qb6 {[%clk
0:00:38.2]} 21. Nxg6 {[%clk 0:00:58.9]} 21... Qxd4 {[%clk 0:00:36.7]} 22. Rxd4
{[%clk 0:00:59.8]} 22... Nxg6 {[%clk 0:00:36.6]} 23. f4 {[%clk 0:00:57.7]} 23...
Ne7 {[%clk 0:00:32.5]} 24. g4 {[%clk 0:00:49.8]} 24... Bb7 {[%clk 0:00:30.5]}
25. Bh3 {[%clk 0:00:47.4]} 25... Re8 {[%clk 0:00:29]} 26. Re1 {[%clk 0:00:46.1]}
26... Bc8 {[%clk 0:00:21]} 27. c3 {[%clk 0:00:45.4]} 27... bxc3 {[%clk
0:00:20.8]} 28. bxc3 {[%clk 0:00:46.3]} 28... Rd8 {[%clk 0:00:20]} 29. Rd2
{[%clk 0:00:44.4]} 29... Ng6 {[%clk 0:00:18.5]} 30. Rf2 {[%clk 0:00:39.6]} 30...
Ne7 {[%clk 0:00:16.8]} 31. Bg5 {[%clk 0:00:38.3]} 31... Rdf8 {[%clk 0:00:16.5]}
32. f5 {[%clk 0:00:35.9]} 32... Re8 {[%clk 0:00:10.7]} 33. Rfe2 {[%clk
0:00:34.5]} 33... Nc6 {[%clk 0:00:08.5]} 34. Bg2 {[%clk 0:00:34]} 34... Rb7+
{[%clk 0:00:08.6]} 35. Ka1 {[%clk 0:00:32]} 35... Rb5 {[%clk 0:00:09.1]} 36.
fxe6 {[%clk 0:00:30.4]} 36... Bb7 {[%clk 0:00:09.6]} 37. Bf6 {[%clk 0:00:28.3]}
37... Na5 {[%clk 0:00:08.7]} 38. e7 {[%clk 0:00:25.3]} 38... Rb6 {[%clk
0:00:08]} 39. g5 {[%clk 0:00:25.3]} 39... Ra6 {[%clk 0:00:07.4]} 40. Kb1 {[%clk
0:00:23.7]} 40... Rd6 {[%clk 0:00:06.9]} 41. Rh1 {[%clk 0:00:17.7]} 41... Bc8
{[%clk 0:00:06.8]} 42. Re5 {[%clk 0:00:15.8]} 42... Bb7 {[%clk 0:00:05.3]} 43.
Kc1 {[%clk 0:00:12.5]} 43... d4 {[%clk 0:00:04.3]} 44. Bxb7 {[%clk 0:00:06.2]}
44... Nxb7 {[%clk 0:00:05.2]} 45. cxd4 {[%clk 0:00:06.9]} 45... Rxd4 {[%clk
0:00:05.5]} 46. Re2 {[%clk 0:00:03]} 46... Rd7 {[%clk 0:00:03.7]} 47. Reh2
{[%clk 0:00:01.8]} 47... Rexe7 {[%clk 0:00:04.3]} 48. Bxe7 {[%clk 0:00:02.7]}
48... Rxe7 {[%clk 0:00:04.7]} 49. g6 {[%clk 0:00:03.5]} 49... Nc5 {[%clk
0:00:05.3]} 50. Rxh7 {[%clk 0:00:03.2]} 50... Re2 {[%clk 0:00:05.6]} 51. Rc7
{[%clk 0:00:01.6]} 51... Nd3+ {[%clk 0:00:06.1]} 52. Kb1 {[%clk 0:00:02.3]}
52... Rb2+ {[%clk 0:00:06.4]} 53. Ka1 {[%clk 0:00:02.3]} 53... Rc2 {[%clk
0:00:06.9]} 54. g7 {[%clk 0:00:02.9]} 54... Rc1+ {[%clk 0:00:05.3]} 55. Rxc1
{[%clk 0:00:03.5]} 55... Nxc1 {[%clk 0:00:06.2]} 56. Rxc4 {[%clk 0:00:03.9]}
56... Nd3 {[%clk 0:00:06]} 57. Rc7 {[%clk 0:00:04.2]} 57... a6 {[%clk
0:00:05.9]} 58. Kb1 {[%clk 0:00:04.1]} 58... Nb4 {[%clk 0:00:06]} 59. Kb2 {[%clk
0:00:04.5]} 59... Nd5 {[%clk 0:00:06.6]} 60. Ra7 {[%clk 0:00:04.8]} 1-0

[Event "Early-Titled-Tuesday-Blitz-March-05-2024"]
[Site "Chess.com"]
[Date "2024.03.05"]
[Round "11"]
[White "KorolDimitriy75"]
[Black "IngOscarArdila"]
[Result "1/2-1/2"]
[WhiteElo "2427"]
[BlackElo "2329"]
[TimeControl "180+1"]
[EndTime "10:10:21 PST"]
[Termination "Game drawn by stalemate"]

1. d4 {[%clk 0:03:00.9]} 1... Nf6 {[%clk 0:02:59.9]} 2. c4 {[%clk 0:03:01.3]}
2... e6 {[%clk 0:03:00.4]} 3. Nc3 {[%clk 0:03:01.9]} 3... Be7 {[%clk 0:03:01.3]}
4. e4 {[%clk 0:03:01.4]} 4... d6 {[%clk 0:03:02.2]} 5. Nf3 {[%clk 0:02:56.9]}
5... O-O {[%clk 0:03:02]} 6. Bd3 {[%clk 0:02:54.5]} 6... Nbd7 {[%clk 0:03:02.3]}
7. e5 {[%clk 0:02:48.6]} 7... Ne8 {[%clk 0:02:58.9]} 8. Qe2 {[%clk 0:02:46.6]}
8... f5 {[%clk 0:02:50.5]} 9. exf6 {[%clk 0:02:45.2]} 9... Ndxf6 {[%clk
0:02:50.7]} 10. O-O {[%clk 0:02:25.3]} 10... Bd7 {[%clk 0:02:49.8]} 11. Re1
{[%clk 0:02:24.8]} 11... g6 {[%clk 0:02:49.3]} 12. Bh6 {[%clk 0:02:12.5]} 12...
Ng7 {[%clk 0:02:47.8]} 13. Ng5 {[%clk 0:02:02.9]} 13... Nfh5 {[%clk 0:02:48]}
14. Qe3 {[%clk 0:00:53.5]} 14... Bxg5 {[%clk 0:02:42.1]} 15. Bxg5 {[%clk
0:00:53.3]} 15... Qe8 {[%clk 0:02:42.3]} 16. Rad1 {[%clk 0:00:35.9]} 16... Qf7
{[%clk 0:02:34.6]} 17. h3 {[%clk 0:00:33.9]} 17... Nf5 {[%clk 0:02:31.3]} 18.
Bxf5 {[%clk 0:00:31.5]} 18... gxf5 {[%clk 0:02:12.3]} 19. Bh6 {[%clk 0:00:30.7]}
19... Ng7 {[%clk 0:02:12.5]} 20. Qg5 {[%clk 0:00:28.6]} 20... Qg6 {[%clk
0:02:10.9]} 21. f4 {[%clk 0:00:27.2]} 21... Qxg5 {[%clk 0:02:09.9]} 22. Bxg5
{[%clk 0:00:28.1]} 22... Kf7 {[%clk 0:02:07.6]} 23. d5 {[%clk 0:00:27.8]} 23...
Rae8 {[%clk 0:02:00.9]} 24. g3 {[%clk 0:00:26.2]} 24... e5 {[%clk 0:01:50.9]}
25. fxe5 {[%clk 0:00:23.9]} 25... dxe5 {[%clk 0:01:50.8]} 26. Bh6 {[%clk
0:00:21.4]} 26... Kg6 {[%clk 0:01:48.4]} 27. Bxg7 {[%clk 0:00:21]} 27... Kxg7
{[%clk 0:01:49.3]} 28. Kf2 {[%clk 0:00:21.1]} 28... f4 {[%clk 0:01:45.2]} 29. g4
{[%clk 0:00:21.3]} 29... h5 {[%clk 0:01:45.1]} 30. Kf3 {[%clk 0:00:21.5]} 30...
hxg4+ {[%clk 0:01:44.8]} 31. hxg4 {[%clk 0:00:22.4]} 31... Rh8 {[%clk 0:01:45]}
32. Rh1 {[%clk 0:00:21.6]} 32... Kg6 {[%clk 0:01:38.9]} 33. Ne4 {[%clk
0:00:20.5]} 33... Reg8 {[%clk 0:01:18.8]} 34. c5 {[%clk 0:00:19.2]} 34... Kf7
{[%clk 0:01:08.7]} 35. Rxh8 {[%clk 0:00:17.2]} 35... Rxh8 {[%clk 0:01:07.9]} 36.
Rg1 {[%clk 0:00:16.2]} 36... Rh3+ {[%clk 0:01:06.9]} 37. Kf2 {[%clk 0:00:16.1]}
37... Rd3 {[%clk 0:01:01.5]} 38. Rh1 {[%clk 0:00:15.2]} 38... Bxg4 {[%clk
0:00:59.2]} 39. Rh7+ {[%clk 0:00:14.6]} 39... Kg6 {[%clk 0:00:59.4]} 40. Rxc7
{[%clk 0:00:14.4]} 40... Rxd5 {[%clk 0:00:50.4]} 41. Rxb7 {[%clk 0:00:14.2]}
41... Rd4 {[%clk 0:00:50.6]} 42. Nd6 {[%clk 0:00:13.5]} 42... Rd2+ {[%clk
0:00:50.3]} 43. Ke1 {[%clk 0:00:13.6]} 43... Re2+ {[%clk 0:00:46.7]} 44. Kf1
{[%clk 0:00:13.5]} 44... e4 {[%clk 0:00:43.2]} 45. Re7 {[%clk 0:00:12]} 45... e3
{[%clk 0:00:40.8]} 46. Nc4 {[%clk 0:00:10.9]} 46... Rf2+ {[%clk 0:00:40.4]} 47.
Ke1 {[%clk 0:00:10.5]} 47... Re2+ {[%clk 0:00:35.2]} 48. Kf1 {[%clk 0:00:10.3]}
48... Rf2+ {[%clk 0:00:31.3]} 49. Ke1 {[%clk 0:00:10.5]} 49... Kf6 {[%clk
0:00:28]} 50. Re8 {[%clk 0:00:10.2]} 50... Rc2 {[%clk 0:00:24.6]} 51. Nxe3
{[%clk 0:00:09.9]} 51... fxe3 {[%clk 0:00:24.3]} 52. Rxe3 {[%clk 0:00:09.1]}
52... Rxb2 {[%clk 0:00:24.6]} 53. Ra3 {[%clk 0:00:09.3]} 53... Rb7 {[%clk
0:00:23.8]} 54. Kd2 {[%clk 0:00:08.4]} 54... Ke5 {[%clk 0:00:22.4]} 55. Kc3
{[%clk 0:00:07.7]} 55... Kd5 {[%clk 0:00:22]} 56. Ra4 {[%clk 0:00:07.7]} 56...
Bd7 {[%clk 0:00:20]} 57. Rc4 {[%clk 0:00:06.7]} 57... Bc6 {[%clk 0:00:19.1]} 58.
a3 {[%clk 0:00:06.2]} 58... Rb5 {[%clk 0:00:19.1]} 59. Rd4+ {[%clk 0:00:05.9]}
59... Kxc5 {[%clk 0:00:19.2]} 60. Rc4+ {[%clk 0:00:05.8]} 60... Kb6 {[%clk
0:00:19.5]} 61. Rb4 {[%clk 0:00:06]} 61... Ka5 {[%clk 0:00:18]} 62. Rxb5+ {[%clk
0:00:06]} 62... Bxb5 {[%clk 0:00:18.3]} 63. Kb2 {[%clk 0:00:06.9]} 63... Ka4
{[%clk 0:00:18.5]} 64. Ka1 {[%clk 0:00:07.3]} 64... Bc4 {[%clk 0:00:18.7]} 65.
Kb1 {[%clk 0:00:07.6]} 65... Kb3 {[%clk 0:00:18.9]} 66. Ka1 {[%clk 0:00:08]}
66... a5 {[%clk 0:00:18.8]} 67. a4 {[%clk 0:00:08.3]} 67... Bd3 {[%clk 0:00:18]}
1/2-1/2